bitfinex/quotes_BTCUSD_20220218
["timestamp","ask_amount","ask_price","bid_price","bid_amount"]
[1645155146884,0.18452765,40733.0,40730.0,0.063384]
[1645155147084,0.18452765,40733.0,40730.0,0.061384]
[1645155147489,0.18452765,40733.0,40730.0,0.27068815]
[1645155147887,0.18452765,40733.0,40730.0,0.27268815]
[1645155148087,0.18452765,40733.0,40730.0,0.063384]
[1645155148287,0.18452765,40733.0,40730.0,0.27268598]
[1645155148486,0.18452765,40733.0,40730.0,0.063384]
[1645155148890,0.18452765,40733.0,40730.0,0.27269023]
[1645155149090,0.18452765,40733.0,40730.0,0.27069024]
[1645155149289,0.18452765,40733.0,40730.0,0.061384]
[1645155149489,0.18452765,40733.0,40730.0,0.27068958]
[1645155149691,0.18452765,40733.0,40730.0,0.27068934]
[1645155149889,0.18452765,40733.0,40730.0,0.27268932]
[1645155150147,0.18452765,40733.0,40730.0,0.063384]
[1645155150341,0.18452765,40733.0,40730.0,0.27269008]
[1645155150540,0.18452765,40733.0,40730.0,0.063384]
[1645155150840,0.18452765,40733.0,40730.0,0.27269181]
[1645155151039,0.18452765,40733.0,40730.0,0.2726924]
[1645155151241,0.18452765,40733.0,40727.0,0.26177769]
[1645155151442,0.061391,40732.0,40730.0,0.20930914]
[1645155151740,0.10244918,40733.0,40730.0,0.20930924]
[1645155152745,0.061391,40732.0,40730.0,0.20930924]
[1645155153888,0.061391,40732.0,40730.0,0.27070024]
[1645155155690,0.111391,40732.0,40730.0,0.27070024]
[1645155156691,0.061391,40732.0,40730.0,0.27070024]
[1645155160546,0.37305464,40733.0,40731.0,0.20930924]
[1645155161043,0.37283189,40733.0,40731.0,0.20930924]
[1645155163288,0.061388,40733.0,40731.0,0.20930924]
[1645155163489,1.05829471,40734.0,40731.0,0.27068924]
[1645155163789,0.42022275,40734.0,40733.0,0.26177769]
[1645155163991,0.42022275,40734.0,40732.0,0.31392035]
[1645155164188,0.42022275,40734.0,40731.0,0.052]
[1645155164189,0.42022275,40734.0,40733.0,0.56397863]
[1645155164589,0.42,40734.0,40733.0,0.25005828]
[1645155165540,0.42,40734.0,40733.0,0.81165271]
[1645155165746,0.42,40734.0,40733.0,0.55005828]
[1645155165936,0.08931965,40739.0,40734.0,0.10223234]
[1645155166137,0.00022275,40736.0,40735.0,0.26158702]
[1645155166339,0.00022275,40736.0,40734.0,0.48656843]
[1645155166539,0.00022275,40736.0,40735.0,0.3]
[1645155166742,0.00022275,40736.0,40734.0,0.22498141]
[1645155166938,0.00022275,40736.0,40735.0,0.20924949]
[1645155167138,0.05,40738.0,40735.0,0.20924949]
[1645155167438,0.05,40738.0,40736.0,0.061383]
[1645155167439,0.061383,40737.0,40736.0,0.061383]
[1645155169592,0.056383,40737.0,40736.0,0.061383]
[1645155169992,0.056383,40737.0,40736.0,0.063383]
[1645155171293,0.056383,40737.0,40736.0,0.061383]
[1645155171893,0.056383,40737.0,40736.0,0.063383]
[1645155173141,0.056383,40737.0,40736.0,0.061383]
[1645155176890,0.06175879,40738.0,40736.0,0.061383]
[1645155177290,0.00037179,40738.0,40736.0,0.061383]
[1645155177489,0.08954239,40739.0,40736.0,0.061383]
[1645155177490,0.15128818,40739.0,40736.0,0.061383]
[1645155177891,0.15106544,40739.0,40736.0,0.061383]
[1645155178091,0.15106544,40739.0,40736.0,0.063383]
[1645155178291,0.061378,40738.0,40736.0,0.063383]
[1645155178494,0.12313079,40738.0,40736.0,0.063383]
[1645155179291,0.12313079,40738.0,40736.0,0.061383]
[1645155181760,0.12313079,40738.0,40734.0,0.26446141]
[1645155181961,0.12313079,40738.0,40736.0,0.003]
[1645155182359,0.12313079,40738.0,40736.0,0.064383]
[1645155182761,0.12313079,40738.0,40736.0,1.86146269]
[1645155183360,0.12313079,40738.0,40736.0,1.85846269]
[1645155189939,0.12313079,40738.0,40736.0,1.86046269]
[1645155191390,0.12313079,40738.0,40736.0,1.85846269]
[1645155194099,0.12313079,40738.0,40736.0,1.86046269]
[1645155195357,0.12313079,40738.0,40736.0,1.85846269]
[1645155196057,0.12313079,40738.0,40736.0,1.86046269]
[1645155196458,0.12313079,40738.0,40736.0,0.063383]
[1645155197259,0.12313079,40738.0,40736.0,0.061383]
[1645155199706,0.12313079,40738.0,40736.0,0.27063249]
[1645155200107,0.12313079,40738.0,40736.0,0.063383]
[1645155201308,0.12313079,40738.0,40736.0,0.061383]
[1645155202212,0.12313079,40738.0,40736.0,0.27063249]
[1645155203841,0.12305058,40738.0,40736.0,0.27063249]
[1645155204045,0.12305058,40738.0,40736.0,0.27263249]
[1645155204745,0.12305058,40738.0,40736.0,0.063383]
[1645155205344,0.12305058,40738.0,40736.0,0.061383]
[1645155205545,0.12305058,40738.0,40736.0,0.27063249]
[1645155206146,0.12305058,40738.0,40736.0,0.27183308]
[1645155208191,0.12305058,40738.0,40736.0,0.27383308]
[1645155208392,0.06174979,40738.0,40737.0,0.20924949]
[1645155208591,0.061378,40738.0,40737.0,0.20924949]
[1645155210240,0.15106944,40739.0,40737.0,0.27062549]
[1645155210441,0.15106944,40739.0,40737.0,0.33200124]
[1645155210643,0.08969144,40739.0,40737.0,0.33200124]
[1645155211643,0.37149825,40740.0,40737.0,0.33200124]
[1645155211843,0.00025162,40740.0,40738.0,0.061375]
[1645155212645,0.070675,40741.0,40738.0,0.061375]
[1645155212944,0.07092662,40741.0,40738.0,0.061375]
[1645155213544,0.13230262,40741.0,40738.0,0.061375]
[1645155213888,0.132051,40741.0,40738.0,0.061375]
[1645155215191,0.132051,40741.0,40738.0,0.27063939]
[1645155216191,0.132051,40741.0,40738.0,0.062375]
[1645155217191,0.132051,40741.0,40738.0,0.27163939]
[1645155217391,0.132051,40741.0,40738.0,0.061375]
[1645155217644,0.132051,40741.0,40738.0,0.27063939]
[1645155217843,0.132051,40741.0,40740.0,0.20926439]
[1645155217844,0.0093,40741.0,40740.0,0.20926439]
[1645155218042,0.0093,40741.0,40740.0,0.27063639]
[1645155218244,0.07388696,40742.0,40740.0,0.061372]
[1645155218641,0.07363534,40742.0,40740.0,0.061372]
[1645155219240,0.19637934,40742.0,40740.0,0.061372]
[1645155219440,0.18637934,40742.0,40740.0,0.27063639]
[1645155219641,0.18637934,40742.0,40740.0,0.061372]
[1645155220042,0.18637934,40742.0,40740.0,0.062372]
[1645155220344,0.17237934,40742.0,40740.0,0.062372]
[1645155221389,0.17237934,40742.0,40740.0,0.061372]
[1645155222191,0.17337934,40742.0,40740.0,0.061372]
[1645155223396,0.17237934,40742.0,40740.0,0.061372]
[1645155224195,0.17237934,40742.0,40740.0,0.063372]
[1645155224999,0.332152,40741.0,40740.0,0.002]
[1645155225245,0.5913438,40741.0,40740.0,0.002]
[1645155225443,0.3819828,40741.0,40735.0,0.20926439]
[1645155225650,0.3819828,40741.0,40734.0,0.10223234]
[1645155225651,0.20917528,40739.0,40734.0,0.31149673]
[1645155225844,0.0613924,40738.0,40734.0,0.31149673]
[1645155226444,0.061393,40737.0,40734.0,0.10223234]
[1645155226845,0.111393,40737.0,40734.0,0.10223234]
[1645155227646,0.172782,40737.0,40734.0,0.10223234]
[1645155227845,0.061391,40736.0,40734.0,0.10223234]
[1645155230096,0.062391,40736.0,40734.0,0.10223234]
[1645155231298,0.061391,40736.0,40734.0,0.10223234]
[1645155232099,0.3,40735.0,40734.0,0.10223234]
[1645155232301,0.35,40735.0,40734.0,0.10223234]
[1645155232744,0.05,40735.0,40734.0,0.10223234]
[1645155232945,0.111391,40736.0,40734.0,0.10223234]
[1645155234243,0.112391,40736.0,40734.0,0.10223234]
[1645155234644,0.112391,40736.0,40734.0,0.16362134]
[1645155235446,0.111391,40736.0,40734.0,0.16362134]
[1645155236247,0.111391,40736.0,40734.0,0.16482062]
[1645155236490,0.111391,40736.0,40734.0,0.10343162]
[1645155238190,0.112391,40736.0,40734.0,0.10343162]
[1645155239590,0.112391,40736.0,40734.0,0.16482062]
[1645155239990,0.111391,40736.0,40734.0,0.16482062]
[1645155240645,0.111391,40736.0,40734.0,0.10343162]
[1645155241046,0.111391,40736.0,40734.0,0.10223234]
[1645155242845,0.11127175,40736.0,40734.0,0.16362134]
[1645155246597,0.11127175,40736.0,40734.0,0.10223234]
[1645155248138,0.11227175,40736.0,40734.0,0.10223234]
[1645155249540,0.11127175,40736.0,40734.0,0.10223234]
[1645155249740,0.11134405,40736.0,40734.0,0.10223234]
[1645155252394,0.3,40735.0,40734.0,0.10223234]
[1645155252598,0.349,40735.0,40734.0,0.10223234]
[1645155252996,0.681152,40735.0,40734.0,0.10223234]
[1645155253195,0.99032728,40735.0,40734.0,0.10223234]
[1645155253394,0.781152,40735.0,40734.0,0.10223234]
[1645155253596,2.136152,40735.0,40734.0,0.10223234]
[1645155253795,2.316417,40734.0,40727.0,0.00025151]
[1645155253996,2.316417,40734.0,40725.0,0.00025151]
[1645155253997,0.393568,40730.0,40725.0,0.00025151]
[1645155254200,0.393568,40730.0,40720.0,0.55392035]
[1645155254201,0.049,40729.0,40723.0,0.20949434]
[1645155254397,0.332152,40728.0,40722.0,0.20924283]
[1645155254597,0.332152,40726.0,40722.0,0.00025151]
[1645155254799,0.72197862,40726.0,40721.0,0.00025151]
[1645155254998,0.3,40725.0,40720.0,0.44924283]
[1645155255248,0.44357,40724.0,40720.0,0.24]
[1645155255549,0.111418,40724.0,40720.0,0.24]
[1645155255846,0.12283513,40723.0,40720.0,0.24025151]
[1645155256048,0.3,40722.0,40720.0,0.24025151]
[1645155256250,0.05,40721.0,40720.0,0.24025151]
[1645155256547,0.05,40721.0,40720.0,0.24]
[1645155256548,0.382152,40721.0,40720.0,0.24]
[1645155256752,0.05,40721.0,40720.0,0.24]
[1645155256946,0.382152,40721.0,40720.0,0.24]
[1645155257148,0.05,40721.0,40720.0,0.24]
[1645155257649,0.05,40721.0,40720.0,0.24025151]
[1645155257848,0.05,40721.0,40720.0,0.24]
[1645155258895,0.382152,40721.0,40720.0,0.24]
[1645155259300,0.05,40721.0,40720.0,0.24]
[1645155260596,0.05,40721.0,40720.0,0.235]
[1645155260797,0.05,40721.0,40719.0,0.00025151]
[1645155260997,0.05,40721.0,40718.0,0.061415]
[1645155260998,0.111415,40721.0,40718.0,0.06166651]
[1645155262652,0.122829,40720.0,40718.0,0.06166651]
[1645155263349,0.122829,40720.0,40718.0,0.00025151]
[1645155263549,0.122829,40720.0,40717.0,0.38425151]
[1645155263751,0.122837,40719.0,40717.0,0.38425151]
[1645155263951,0.184256,40719.0,40717.0,0.38425151]
[1645155264151,0.05,40718.0,40717.0,0.38425151]
[1645155264355,0.184256,40719.0,40717.0,0.38425151]
[1645155264552,0.184256,40719.0,40717.0,0.44566751]
[1645155264751,0.184256,40719.0,40717.0,0.445416]
[1645155266253,0.05,40718.0,40717.0,0.445416]
[1645155266497,0.05,40718.0,40717.0,0.384]
[1645155266797,0.184256,40719.0,40717.0,0.384]
[1645155268196,0.184256,40719.0,40717.0,0.445416]
[1645155270842,0.061419,40719.0,40718.0,0.00104449]
[1645155271042,0.061408,40721.0,40718.0,0.00131084]
[1645155271241,0.061408,40721.0,40719.0,0.061411]
[1645155271442,0.061408,40721.0,40719.0,0.06167735]
[1645155271843,0.00602161,40724.0,40719.0,0.06167735]
[1645155272043,0.12883761,40724.0,40719.0,0.06167735]
[1645155272444,0.061408,40721.0,40719.0,0.06167735]
[1645155272843,0.111408,40721.0,40719.0,0.06167735]
[1645155273900,0.11134182,40721.0,40719.0,0.06167735]
[1645155274699,0.11134182,40721.0,40719.0,0.00026635]
[1645155274700,0.11141331,40721.0,40719.0,0.00026635]
[1645155274905,0.11141331,40721.0,40718.0,0.00131084]
[1645155275100,0.122838,40720.0,40718.0,0.00131084]
[1645155276301,0.122838,40720.0,40718.0,0.00026635]
[1645155276500,0.122838,40720.0,40717.0,0.38426635]
[1645155276701,0.061416,40719.0,40718.0,0.061416]
[1645155276902,0.061418,40720.0,40718.0,0.06168235]
[1645155277945,0.122834,40720.0,40718.0,0.00026635]
[1645155278147,0.122834,40720.0,40717.0,0.38426635]
[1645155278347,0.122834,40720.0,40717.0,0.00026635]
[1645155278548,0.122834,40720.0,40716.0,0.20924283]
[1645155278549,0.332152,40717.0,40716.0,0.20924283]
[1645155278747,0.332152,40717.0,40715.0,0.00026635]
[1645155278748,1.305,40716.0,40715.0,0.00026635]
[1645155278947,1.305,40716.0,40705.0,0.0999]
[1645155278948,0.332152,40712.0,40705.0,0.36148702]
[1645155279247,0.332152,40712.0,40705.0,0.0999]
[1645155279248,0.382152,40710.0,40705.0,0.0999]
[1645155279446,0.382152,40710.0,40701.0,0.3807]
[1645155279447,0.332152,40708.0,40701.0,0.3807]
[1645155279645,0.049,40707.0,40701.0,0.3807]
[1645155279844,0.061446,40705.0,40701.0,0.3807]
[1645155280051,0.061448,40703.0,40701.0,0.3807]
[1645155280245,0.332152,40704.0,40701.0,0.3807]
[1645155280444,0.111446,40705.0,40701.0,0.3807]
[1645155280643,0.05,40705.0,40701.0,0.3807]
[1645155280847,0.05,40707.0,40701.0,0.3807]
[1645155281493,0.049,40707.0,40702.0,0.061433]
[1645155282293,0.049,40707.0,40702.0,0.063433]
[1645155282294,0.11043,40707.0,40702.0,0.063433]
[1645155282493,0.171862,40707.0,40702.0,0.063433]
[1645155283595,0.171862,40707.0,40702.0,0.061433]
[1645155284395,0.172862,40707.0,40702.0,0.061433]
[1645155284596,0.17293268,40707.0,40702.0,0.061433]
[1645155285648,0.12293268,40707.0,40702.0,0.061433]
[1645155289193,0.12293268,40707.0,40702.0,0.064433]
[1645155290498,0.12293268,40707.0,40702.0,0.061433]
[1645155290996,0.12293268,40707.0,40702.0,0.063433]
[1645155292196,0.12293268,40707.0,40702.0,0.061433]
[1645155292657,0.12293268,40707.0,40702.0,0.063433]
[1645155293247,0.17293268,40707.0,40702.0,0.063433]
[1645155293447,0.3936,40704.0,40702.0,0.002]
[1645155293646,0.4436,40704.0,40702.0,0.002]
[1645155293847,0.4436,40704.0,40701.0,0.3807]
[1645155294552,0.52606517,40702.0,40701.0,0.3807]
[1645155294748,0.57606517,40702.0,40701.0,0.3807]
[1645155295355,0.382152,40702.0,40701.0,0.3807]
[1645155296510,0.061448,40703.0,40701.0,0.3807]
[1645155296710,0.11150161,40705.0,40701.0,0.3807]
[1645155296910,0.06150161,40705.0,40701.0,0.3807]
[1645155297109,0.05,40704.0,40701.0,0.3807]
[1645155297310,0.06150161,40705.0,40701.0,0.3807]
[1645155297709,0.06150161,40705.0,40701.0,0.442132]
[1645155297911,0.12293161,40705.0,40701.0,0.442132]
[1645155298115,0.06150061,40705.0,40704.0,0.25158273]
[1645155298312,7.061e-05,40705.0,40702.0,0.30026382]
[1645155298810,1.061e-05,40705.0,40702.0,0.30026382]
[1645155299012,1.061e-05,40705.0,40702.0,0.30126382]
[1645155299214,1.061e-05,40705.0,40703.0,0.061427]
[1645155299411,1.061e-05,40705.0,40704.0,0.3]
[1645155299612,7.043e-05,40709.0,40704.0,0.00026382]
[1645155299813,7.043e-05,40709.0,40703.0,0.00026382]
[1645155300012,7.043e-05,40709.0,40702.0,0.00126382]
[1645155300445,0.061427,40708.0,40703.0,0.061431]
[1645155300652,0.061427,40708.0,40703.0,0.06169482]
[1645155303547,0.122855,40708.0,40703.0,0.06169482]
[1645155303749,0.061432,40707.0,40703.0,0.06169482]
[1645155304391,0.061432,40707.0,40703.0,0.061431]
[1645155304595,0.123863,40707.0,40702.0,0.06169682]
[1645155304793,0.061432,40705.0,40701.0,0.38096382]
[1645155305592,0.061432,40705.0,40703.0,0.30484356]
[1645155305795,0.061431,40707.0,40703.0,0.36627556]
[1645155305991,6.574e-05,40708.0,40703.0,0.36627556]
[1645155305992,0.12292074,40708.0,40703.0,0.061432]
[1645155306193,0.06149274,40708.0,40703.0,0.061432]
[1645155306793,0.06149274,40708.0,40702.0,0.00026382]
[1645155306794,0.18435774,40708.0,40702.0,0.00026382]
[1645155307093,0.18435774,40708.0,40701.0,0.38096382]
[1645155307751,0.18435774,40708.0,40703.0,0.31067501]
[1645155308051,0.18435774,40708.0,40703.0,0.061432]
[1645155308252,0.061428,40707.0,40703.0,0.061432]
[1645155308455,0.122858,40707.0,40703.0,0.061432]
[1645155309251,0.061428,40707.0,40703.0,0.06169582]
[1645155309453,6.561e-05,40705.0,40703.0,0.06169582]
[1645155310254,6.561e-05,40705.0,40703.0,0.061432]
[1645155310453,0.06149761,40705.0,40703.0,0.061432]
[1645155310655,0.12293061,40705.0,40703.0,0.061432]
[1645155312396,0.06149761,40705.0,40703.0,0.061432]
[1645155313605,0.12293161,40705.0,40703.0,0.061432]
[1645155314499,0.12293161,40705.0,40702.0,0.00026382]
[1645155314698,0.12293161,40705.0,40701.0,0.66638211]
[1645155315151,0.12293161,40705.0,40701.0,0.38096382]
[1645155315745,0.12293161,40705.0,40702.0,0.061436]
[1645155315943,0.12293161,40705.0,40702.0,0.06169982]
[1645155317146,0.061434,40704.0,40702.0,0.06169982]
[1645155317346,0.12287,40704.0,40702.0,0.06169982]
[1645155317948,0.12287,40704.0,40702.0,0.00026382]
[1645155318149,0.061441,40703.0,40701.0,0.38096382]
[1645155318348,0.061441,40703.0,40701.0,0.3807]
[1645155319696,0.04339605,40703.0,40701.0,0.3807]
[1645155319895,0.04339605,40703.0,40701.0,0.38096382]
[1645155321197,0.04339605,40703.0,40701.0,0.64255084]
[1645155321402,0.10483688,40703.0,40701.0,0.3807]
[1645155321598,0.10483688,40703.0,40701.0,0.38096382]
[1645155321800,0.3,40702.0,40701.0,0.38096382]
[1645155322000,0.3,40702.0,40697.0,0.26158702]
[1645155322001,0.23912913,40700.0,40697.0,0.26158702]
[1645155322199,0.30058013,40700.0,40697.0,0.26158702]
[1645155322399,0.36145067,40699.0,40697.0,0.26158702]
[1645155322652,0.36145067,40699.0,40695.0,0.43092035]
[1645155322653,0.3,40698.0,40695.0,0.37858702]
[1645155322846,0.22117679,40696.0,40695.0,0.26258702]
[1645155323045,0.22117679,40696.0,40695.0,0.16258702]
[1645155323546,0.22117679,40696.0,40693.0,0.001]
[1645155323949,0.23047679,40696.0,40693.0,0.001]
[1645155324145,0.29193579,40696.0,40693.0,0.001]
[1645155324346,0.59293579,40696.0,40693.0,0.001]
[1645155324546,0.41585179,40696.0,40693.0,0.001]
[1645155325548,0.41585179,40696.0,40690.0,0.31308435]
[1645155325748,0.061458,40695.0,40690.0,0.31308435]
[1645155325948,0.061459,40694.0,40690.0,0.31308435]
[1645155326394,0.061459,40694.0,40689.0,0.003]
[1645155326598,0.12291745,40694.0,40689.0,0.003]
[1645155326797,0.3,40693.0,40689.0,0.003]
[1645155326995,0.18437545,40694.0,40689.0,0.003]
[1645155327295,0.06146,40693.0,40689.0,0.003]
[1645155327895,0.12291761,40693.0,40689.0,0.003]
[1645155328496,0.18437761,40693.0,40689.0,0.003]
[1645155329297,0.12291939,40692.0,40689.0,0.003]
[1645155329499,0.42291939,40692.0,40689.0,0.003]
[1645155329697,0.332152,40691.0,40689.0,0.003]
[1645155329899,0.632152,40690.0,40689.0,0.003]
[1645155332444,0.633152,40690.0,40689.0,0.003]
[1645155333644,0.632152,40690.0,40689.0,0.003]
[1645155333899,0.11145723,40692.0,40689.0,0.003]
[1645155334098,0.06145723,40692.0,40689.0,0.003]
[1645155334497,6.486e-05,40691.0,40689.0,0.003]
[1645155334997,6.486e-05,40691.0,40689.0,0.064452]
[1645155337299,0.061449,40696.0,40692.0,0.061449]
[1645155337963,0.061449,40696.0,40691.0,0.32136051]
[1645155338563,0.122898,40696.0,40692.0,0.061449]
[1645155338764,0.122898,40696.0,40692.0,0.06171023]
[1645155338962,0.061449,40696.0,40692.0,0.06171023]
[1645155339568,0.061451,40695.0,40692.0,0.061449]
[1645155340165,0.061449,40696.0,40692.0,0.061449]
[1645155340566,0.061449,40696.0,40692.0,0.33114903]
[1645155340766,0.061449,40696.0,40692.0,0.061449]
[1645155341396,0.122897,40696.0,40692.0,0.061449]
[1645155341598,0.061447,40697.0,40692.0,0.061449]
[1645155342000,0.061447,40697.0,40692.0,0.06171023]
[1645155342204,0.061447,40697.0,40692.0,0.00026123]
[1645155342400,0.061449,40696.0,40691.0,0.30590151]
[1645155342598,0.061449,40696.0,40691.0,0.30616274]
[1645155342800,0.061453,40696.0,40691.0,0.30616274]
[1645155343000,0.061453,40696.0,40690.0,0.00026123]
[1645155343199,0.061453,40696.0,40689.0,0.00326123]
[1645155343601,0.06145,40695.0,40689.0,0.00326123]
[1645155343802,0.061459,40694.0,40689.0,0.00326123]
[1645155344707,0.122919,40694.0,40689.0,0.00326123]
[1645155345003,0.061456,40693.0,40689.0,0.00326123]
[1645155346752,0.061456,40693.0,40690.0,0.061453]
[1645155346952,0.061456,40693.0,40690.0,0.06171423]
[1645155347357,0.122912,40693.0,40690.0,0.00026123]
[1645155347551,0.122912,40693.0,40689.0,0.00326123]
[1645155348899,0.122912,40693.0,40690.0,0.061452]
[1645155349099,0.122912,40693.0,40690.0,0.06171323]
[1645155349806,0.06145075,40697.0,40696.0,0.001]
[1645155351999,0.0031617,40693.0,40692.0,0.063449]
[1645155352399,0.0031617,40693.0,40692.0,0.002]
[1645155356153,0.0031617,40693.0,40692.0,0.00367724]
[1645155358500,0.0041617,40693.0,40692.0,0.00367724]
[1645155359801,0.0031617,40693.0,40692.0,0.00367724]
[1645155360446,0.0041617,40693.0,40692.0,0.00367724]
[1645155361745,0.0031617,40693.0,40692.0,0.00367724]
[1645155365502,0.0031617,40693.0,40692.0,0.26525908]
[1645155365898,0.0031617,40693.0,40692.0,0.26358184]
[1645155367748,0.0031617,40693.0,40692.0,0.26384177]
[1645155368548,0.0041617,40693.0,40692.0,0.26384177]
[1645155368749,0.0041617,40693.0,40692.0,0.26401613]
[1645155369850,0.0031617,40693.0,40692.0,0.2637562]
[1645155370653,0.0041617,40693.0,40692.0,0.2637562]
[1645155371900,0.0031617,40693.0,40692.0,0.2637562]
[1645155372598,0.0041617,40693.0,40692.0,0.2637562]
[1645155373799,0.0031617,40693.0,40692.0,0.2637562]
[1645155374402,0.0031617,40693.0,40692.0,0.002]
[1645155374600,0.0041617,40693.0,40692.0,0.00225993]
[1645155375155,0.0041617,40693.0,40692.0,0.06371193]
[1645155375550,0.0041617,40693.0,40692.0,0.32546813]
[1645155375755,0.0031617,40693.0,40692.0,0.3252082]
[1645155376550,0.0031617,40693.0,40692.0,0.3262082]
[1645155377450,0.0031617,40693.0,40692.0,0.064452]
[1645155377652,0.0031617,40693.0,40692.0,0.32627511]
[1645155377852,0.0031617,40693.0,40692.0,0.32527511]
[1645155378052,0.0031617,40693.0,40692.0,0.26382311]
[1645155378452,0.0031617,40693.0,40692.0,0.002]
[1645155378653,0.0031617,40693.0,40692.0,0.003]
[1645155380098,0.0031617,40693.0,40692.0,0.002]
[1645155380697,0.0031617,40693.0,40692.0,0.003]
[1645155381902,0.0031617,40693.0,40692.0,0.002]
[1645155382102,0.0031617,40693.0,40692.0,0.31584191]
[1645155382103,0.00309194,40693.0,40692.0,0.31584191]
[1645155382303,0.00309194,40693.0,40692.0,0.002]
[1645155382502,0.00309194,40693.0,40692.0,0.31724403]
[1645155383856,0.00309194,40693.0,40692.0,0.31624403]
[1645155384656,0.00409194,40693.0,40692.0,0.31624403]
[1645155385858,0.00309194,40693.0,40692.0,0.31624403]
[1645155386259,0.00309194,40693.0,40692.0,0.31834058]
[1645155386699,0.00409194,40693.0,40692.0,0.31834058]
[1645155387002,0.00409194,40693.0,40692.0,0.00409655]
[1645155387399,0.00409194,40693.0,40692.0,0.26598757]
[1645155387600,0.00409194,40693.0,40692.0,0.00409655]
[1645155387800,0.33524394,40693.0,40692.0,0.00409655]
[1645155388605,0.33524394,40693.0,40692.0,0.00509655]
[1645155389802,0.33524394,40693.0,40692.0,0.00409655]
[1645155390001,0.00617747,40691.0,40690.0,4.26387924]
[1645155390252,0.00617747,40691.0,40690.0,4.002]
[1645155390454,0.00617747,40691.0,40690.0,4.31624403]
[1645155390654,0.00617747,40691.0,40690.0,4.002]
[1645155393355,0.00617747,40691.0,40690.0,4.2638643]
[1645155393759,0.00617747,40691.0,40690.0,4.002]
[1645155396600,0.33932947,40691.0,40690.0,4.002]
[1645155396801,0.33932947,40691.0,40690.0,4.21148972]
[1645155397404,0.82054188,40691.0,40690.0,4.21148972]
[1645155397655,0.82054188,40691.0,40690.0,4.002]
[1645155397848,0.81954188,40691.0,40690.0,4.002]
[1645155398250,0.5340536,40691.0,40690.0,4.002]
[1645155398450,1.8390536,40691.0,40690.0,4.002]
[1645155398652,1.8410536,40691.0,40690.0,4.002]
[1645155399850,0.33832947,40691.0,40690.0,4.002]
[1645155402304,0.33824098,40691.0,40690.0,4.002]
[1645155402705,0.33924098,40691.0,40690.0,4.002]
[1645155403907,0.33824098,40691.0,40690.0,4.002]
[1645155404605,0.33924098,40691.0,40690.0,4.002]
[1645155405954,0.33824098,40691.0,40690.0,4.002]
[1645155406154,0.33824098,40691.0,40690.0,3.987]
[1645155410700,0.34024098,40691.0,40690.0,3.987]
[1645155412005,0.33824098,40691.0,40690.0,3.987]
[1645155412659,0.34024098,40691.0,40690.0,3.987]
[1645155413856,0.33824098,40691.0,40690.0,3.987]
[1645155414662,0.34024098,40691.0,40690.0,3.987]
[1645155415857,0.33824098,40691.0,40690.0,3.987]
[1645155418699,0.34024098,40691.0,40690.0,3.987]
[1645155419904,0.33824098,40691.0,40690.0,3.42808883]
[1645155422653,0.34024098,40691.0,40690.0,3.42808883]
[1645155423899,0.33824098,40691.0,40690.0,3.42808883]
[1645155424800,0.34024098,40691.0,40690.0,3.42808883]
[1645155425902,0.33824098,40691.0,40690.0,3.42808883]
[1645155426601,0.34024098,40691.0,40690.0,3.42808883]
[1645155427850,0.33824098,40691.0,40690.0,3.42808883]
[1645155428649,0.34024098,40691.0,40690.0,3.42808883]
[1645155429951,0.33824098,40691.0,40690.0,3.42808883]
[1645155434704,0.34024098,40691.0,40690.0,3.42808883]
[1645155435855,0.33824098,40691.0,40690.0,3.42808883]
[1645155436555,0.00608898,40691.0,40690.0,3.42808883]
[1645155436754,0.33824098,40691.0,40690.0,3.42808883]
[1645155437958,0.00608898,40691.0,40690.0,3.42808883]
[1645155438156,0.33824098,40691.0,40690.0,3.42808883]
[1645155438904,0.34024098,40691.0,40690.0,3.42808883]
[1645155440001,0.33824098,40691.0,40690.0,3.42808883]
[1645155440604,0.21489596,40691.0,40690.0,3.42808883]
[1645155440800,0.21689596,40691.0,40690.0,3.42808883]
[1645155442203,0.54904796,40691.0,40690.0,3.42808883]
[1645155442405,0.54704796,40691.0,40690.0,3.42808883]
[1645155442664,0.33924098,40691.0,40690.0,3.42808883]
[1645155442857,0.54804769,40691.0,40690.0,3.42808883]
[1645155443057,0.33924098,40691.0,40690.0,3.42808883]
[1645155444059,0.54704674,40691.0,40690.0,3.42808883]
[1645155444261,0.33824098,40691.0,40690.0,3.42808883]
[1645155444661,0.34024098,40691.0,40690.0,3.42808883]
[1645155445960,0.33824098,40691.0,40690.0,3.42808883]
[1645155446161,0.0028153,40691.0,40690.0,3.42808883]
[1645155446399,0.3349673,40691.0,40690.0,3.42808883]
[1645155446800,0.3369673,40691.0,40690.0,3.42808883]
[1645155448003,0.3349673,40691.0,40690.0,3.42808883]
[1645155448806,0.3369673,40691.0,40690.0,3.42808883]
[1645155450006,0.59597603,40691.0,40690.0,2.86925275]
[1645155450655,0.3359673,40691.0,40690.0,2.86925275]
[1645155450852,0.59700144,40691.0,40690.0,2.86925275]
[1645155451953,0.59600144,40691.0,40690.0,2.86925275]
[1645155452355,0.3349673,40691.0,40690.0,2.86925275]
[1645155452552,0.59600516,40691.0,40690.0,2.86925275]
[1645155452754,0.59700516,40691.0,40690.0,2.86925275]
[1645155454016,0.59600516,40691.0,40690.0,2.86925275]
[1645155454616,0.59700516,40691.0,40690.0,2.86925275]
[1645155457860,0.59600516,40691.0,40690.0,2.86925275]
[1645155458760,0.59700516,40691.0,40690.0,2.86925275]
[1645155459961,0.59600516,40691.0,40690.0,2.86925275]
[1645155460760,0.59700516,40691.0,40690.0,2.86925275]
[1645155461403,0.3359673,40691.0,40690.0,2.86925275]
[1645155462004,0.3349673,40691.0,40690.0,2.86925275]
[1645155462706,0.3369673,40691.0,40690.0,2.86925275]
[1645155462905,0.59795506,40691.0,40690.0,2.86925275]
[1645155463204,0.59513976,40691.0,40690.0,2.86925275]
[1645155463804,0.59513799,40691.0,40690.0,2.86925275]
[1645155464006,0.332152,40691.0,40690.0,2.86925275]
[1645155464405,0.59313799,40691.0,40690.0,2.86925275]
[1645155465006,0.332152,40691.0,40690.0,2.86925275]
[1645155465654,0.59313799,40691.0,40690.0,2.86925275]
[1645155465857,0.332152,40691.0,40690.0,2.86925275]
[1645155468909,0.33075497,40691.0,40690.0,2.86925275]
[1645155469913,0.59167843,40691.0,40690.0,2.86925275]